Workbook

Sheet INFORMATION (hidden)
A1: Special Rates 2023 Sch S-1.Z25.XLSM
A2: 01/04/2023
A3: CENTRAL VALLEY PROJECT
A4: SCHEDULE OF IRRIGATION UNPAID CONSTRUCTION COSTS BY COMPONENT AND/OR FACILITY
A5: AS OF SEPTEMBER 30, 2021
A6: 2023 SPECIAL WATER RATES
C9: SOURCE DATA:
A37: 10/19/2022 | B37: jm | C37: Updated file names, title, headings, and date
C38: Updated & ran macro
A40: 10/22/2022 | B40: mna | C40: updated formula in cell S106 for DMC intertie. Cost per a/f should not be a negative cost.
A42: 10/24/2022 | B42: jm | C42: updated headings and footnotes
A44: 01/04/23 | B44: KJ | C44: Reviewed

Sheet MACRO_INPUT (hidden)
A1: =INFORMATION!A1 -> Special Rates 2023 Sch S-1.Z25.XLSM
A2: =INFORMATION!A2 -> 01/04/2023
A3: =INFORMATION!A4 -> SCHEDULE OF IRRIGATION UNPAID CONSTRUCTION COSTS BY COMPONENT AND/OR FACILITY
A4: =INFORMATION!A5 -> AS OF SEPTEMBER 30, 2021 | M4: =663986 -> 663986 | N4: -633781 | O4: =SUM(M4:N4) -> 30205
A5: =INFORMATION!A6 -> 2023 SPECIAL WATER RATES
B7: Schedule A-5 | K7: Schedule S-5 | V7: Schedule A-4 | AD7: Schedule A-2B | AF7: Schedule A-4
N8: Projected | AD8: Capital
E9: Total | G9: PUE (BOR) | I9: PUE (DOE) | N9: Deliveries | AD9: Repayment | AG9: Net Construction Cost
A11: Conveyance Pumping | K11: Black Butte D & R | V11: Programmatic EIS Capitalized 4/
B12: Corning Pumping Plant | E12: 2824379.901 | G12: 161064.225 | I12: 134253.1757 | L12: 4-E WD | N12: 2.857142857 | O12: 2.857142857 | V12: All Others
B13: DMC - California Aqueduct Intertie | E13: 26962640.82 | G13: 0 | I13: 0 | L13: Stony Creek WD | N13: 153.8571429 | O13: 153.8571429 | W13: Total Other Costs | AD13: 1061680705
B14: Dos Amigos Pumping Plant | E14: 38876439.17 | G14: 13368248.49 | I14: 11142945.08 | L14: Total Black Butte D & R | N14: 156.7142857 | O14: 156.7142857 | AD14: -3560019.845
B15: O'Neill Pump-Generator Plant | E15: 21879488.43 | G15: 5792517.519 | I15: 4828284.318
B16: Jones Pumping Plant | E16: 114731591.5 | G16: 44810419.09 | I16: 37351193.69 | V16: Sub allocation of Jones Pumping Plant Costs:
C17: Total Conveyance Pumping | E17: 205274539.8 | G17: 64132249.33 | I17: 53456676.26 | K17: Buchanan Unit | AA17: Historical | AF17: Storage
L18: Chowchilla WD - BU | N18: 24000 | O18: 24000 | P18: 0 | AA18: & Projected | AG18: San Felipe Unit Contractors | AI18: 2819259.098
AA19: Deliveries | AG19: All Other Contractors | AI19: 342433452
AA20: 1981-2030 | AH20: Total Storage | AI20: 345252711.1
K21: Clear Creek Unit | AA21: (Sch A-7)
L22: Clear Creek CSD | N22: 981.5714286 | O22: 981.5714286 | P22: 981.5714286 | AF22: Conveyance
Y23: Delta-Mendota Exchange | AA23: 29157082.49 | AG23: Contra Costa WD | AI23: 0
Y24: All Other Contractors | AA24: 51373991.71 | AG24: All Other Contractors | AI24: 377317187.6
K25: Colusa Basin Drain | Z25: Total | AA25: 80531074.2 | AH25: Total Conveyance | AI25: 377317187.6
L26: Colusa Drain MWC | N26: 0 | O26: 0
AF27: Conveyance Pumping
V28: Sub allocation of San Luis Drain Costs: | AG28: Corning Pumping Plant | AI28: 2808344.531
K29: Corning Canal | AA29: Historical | AG29: DMC - California Aqueduct Intertie | AI29: 26955526.76
L30: Corning WD | N30: 5132.142857 | O30: 5132.142857 | P30: 5132.142857 | Q30: 5132.142857 | AA30: & Projected | AG30: Dos Amigos Pumping Plant - Construction only 2/ | AI30: 13497147.38
L31: Proberta WD | N31: 201.4285714 | O31: 201.4285714 | P31: 201.4285714 | Q31: 201.4285714 | AA31: Deliveries | AI31: 24138808.91
L32: Thomes Creek WD | N32: 89.71428571 | O32: 89.71428571 | P32: 89.71428571 | Q32: 89.71428571 | AA32: 1981-2030 | AG32: O'Neill Pump-Generator Plant | AI32: 20999846.61
L33: Total Corning Canal | N33: 5423.285714 | O33: 5423.285714 | P33: 5423.285714 | Q33: 5423.285714 | X33: San Luis Canal Contractors: | AA33: (Sch A-7) | AG33: Jones Pumping Plant 1/
AH34: FK/Madera Exchange (class 1 only) | AI34: 41508559.15
Y35: Panoche WD | AA35: 1915445.857 | AH35: All Other Contractors | AI35: 72998418.68
K36: Cow Creek Unit | Y36: San Luis WD | AA36: 2690216.571 | AH36: Total Conveyance Pumping | AI36: 202906652
L37: Bella Vista WD | N37: 2851.571429 | O37: 2851.571429 | P37: 2851.571429 | Y37: Westlands WD | AA37: 34274241
Z38: Total | AA38: 38879903.43
AF39: Direct Pumping
K40: Cross Valley Canal | AG40: Bella Vista WD (Wintu PP) | AI40: 1288490.822
L41: County of Fresno | N41: 321.4285714 | O41: 321.4285714 | T41: 321.4285714 | V41: Jones Pumping Plant 1/ | AA41: 31163.4 | AG41: Colusa County WD Relift PP | AI41: 11997486.53 | AJ41: 0 | AK41: 14133
L42: County of Tulare | N42: 400.5714286 | O42: 400.5714286 | T42: 400.5714286 | AA42: 193450.28 | AG42: Colusa Service Area - Cortina | AI42: 139400.86 | AJ42: 0 | AK42: 193450.28
L43: Hills Valley ID | N43: 239 | O43: 239 | T43: 239 | AG43: Colusa Service Area - Davis | AI43: 171721.21
L44: Kern-Tulare ID | N44: 5498.142857 | O44: 5498.142857 | T44: 5498.142857 | AG44: Contra Costa PP (Contra Costa WD) | AI44: 0
L45: Lower Tule River ID - CVC | N45: 3303.714286 | O45: 3303.714286 | T45: 3303.714286 | AG45: Corning WD Relift PP | AI45: 3236242.219
L46: Pixley ID | N46: 3332.285714 | O46: 3332.285714 | T46: 3332.285714 | AG46: Dunnigan WD Relift PP | AI46: 1637766.696
L47: Tri-Valley WD | N47: 124.4285714 | O47: 124.4285714 | T47: 124.4285714 | AG47: Kanawha WD Relift PP | AI47: 2820678.878
L48: Total Cross Valley Canal | N48: 13219.57143 | O48: 13219.57143 | T48: 13219.57143 | AG48: Orland-Artois WD Relift PP | AI48: 7339803.626
AG49: Panoche WD Relift PP | AI49: 19786.18537
AG50: Proberta WD Relift PP | AI50: 193993.536
K51: Delta-Mendota Canal | AG51: San Benito County WD
L52: Banta-Carbona ID | N52: 6143 | O52: 6143 | P52: 6143 | R52: 6143 | AH52: Gianelli, WR PGP | AI52: 941297.949
L53: Byron-Bethany ID | N53: 2980.285714 | O53: 2980.285714 | P53: 2980.285714 | R53: 2980.285714 | AH53: Pacheco PP | AI53: 553450.2089
L54: Del Puerto WD | N54: 36972.57143 | O54: 36972.57143 | P54: 36972.57143 | R54: 36972.57143 | AI54: 1494748.158
L55: Eagle Field WD | N55: 1523.857143 | O55: 1523.857143 | P55: 1523.857143 | R55: 1523.857143
L56: Mercy Springs WD | N56: 970.1428571 | O56: 970.1428571 | P56: 970.1428571 | R56: 970.1428571 | AG56: San Luis WD Canalside Relift PP | AI56: 11280163.67
L57: Oro Loma WD | N57: 31.57142857 | O57: 31.57142857 | P57: 31.57142857 | R57: 31.57142857
L58: Pacheco WD - DMC | N58: 142.8571429 | O58: 142.8571429 | P58: 142.8571429 | R58: 142.8571429
L59: Panoche WD - DMC | N59: 6851.571429 | O59: 6851.571429 | P59: 6851.571429 | R59: 6851.571429 | AG59: Santa Clara Valley WD
L60: Patterson WD | N60: 5645.714286 | O60: 5645.714286 | P60: 5645.714286 | R60: 5645.714286 | AH60: Coyote PP | AI60: 165006.5489
L61: San Luis WD - DMC | N61: 5594.571429 | O61: 5594.571429 | P61: 5594.571429 | R61: 5594.571429 | AH61: Gianelli, WR PGP | AI61: 887204.0847
L62: West Side ID | N62: 297.4285714 | O62: 297.4285714 | P62: 297.4285714 | R62: 297.4285714 | AH62: Pacheco PP | AI62: 573294.9721
L63: West Stanislaus ID | N63: 10252.85714 | O63: 10252.85714 | P63: 10252.85714 | R63: 10252.85714 | AI63: 1625505.606
L64: Total Delta-Mendota Canal | N64: 77406.42857 | O64: 77406.42857 | P64: 77406.42857 | R64: 77406.42857
AG66: State Delta PP (CVC Contractors) | AI66: 2998092.81
K67: Delta-Mendota Pool | AG67: Westlands WD
L68: Coelho Trust | N68: 642 | O68: 642 | P68: 642 | R68: 642 | AH68: Pleasant Valley Canalside Relifts | AI68: 1373192.263
L69: Fresno Slough WD | N69: 1322.142857 | O69: 1322.142857 | P69: 1322.142857 | R69: 1322.142857 | AH69: Pleasant Valley PP | AI69: 12742514.09
L70: James ID | N70: 11862.71429 | O70: 11862.71429 | P70: 11862.71429 | R70: 11862.71429 | AH70: Westlands WD Canalside Relifts | AI70: 44913719.33
L71: Laguna WD | N71: 165.7142857 | O71: 165.7142857 | P71: 165.7142857 | R71: 165.7142857 | AI71: 59029425.68
L72: Recl Dist #1606 | N72: 46.14285714 | O72: 46.14285714 | P72: 46.14285714 | R72: 46.14285714
L73: Tranquillity ID | N73: 3386.857143 | O73: 3386.857143 | P73: 3386.857143 | R73: 3386.857143
L74: Tranquillity PUD | N74: 10 | O74: 10 | P74: 10 | R74: 10 | AG74: Westside WD Canalside Relifts | AI74: 6964451.868
L75: Westlands WD - DMP | N75: 3571.428571 | O75: 3571.428571 | P75: 3571.428571 | R75: 3571.428571 | AH75: Total Direct Pumping | AI75: 112237758.4
L76: Total Delta-Mendota Pool | N76: 21007 | O76: 21007 | P76: 21007 | R76: 21007
AF78: San Luis Drain 3/
K79: Friant Dam - Class 2 | AG79: Panoche WD | AI79: 2580614.084
L80: Gravelly Ford WD | N80: 0 | AG80: San Luis WD | AI80: 3624435.936
AG81: Westlands WD | AI81: 46176501.9
AH82: Total San Luis Drain | AI82: 52381551.92
K83: Friant-Kern Canal - Class 1
L84: Arvin-Edison WSD | N84: 23284.28571 | O84: 23284.28571 | P84: 23284.28571 | AG84: Sub-total | AI84: 1090095861
L85: Delano-Earlimart ID | N85: 71332.57143 | O85: 71332.57143 | P85: 71332.57143
L86: Exeter ID | N86: 7031.285714 | O86: 7031.285714 | P86: 7031.285714 | AF86: Other Costs
L87: Garfield WD | N87: 1560.285714 | O87: 1560.285714 | P87: 1560.285714 | AG87: Programmatic EIS Capitalized 4/ | AI87: 13902414.29
L88: Hills Valley ID | N88: 778.8571429 | O88: 778.8571429 | P88: 778.8571429 | AG88: All Others | AI88: 50728059.49
L89: International WD | N89: 645.7142857 | O89: 645.7142857 | P89: 645.7142857 | AH89: Total Other Costs | AI89: 64630473.78
L90: Ivanhoe ID | N90: 4089 | O90: 4089 | P90: 4089
L91: Kaweah Delta WCD | N91: 622.2857143 | O91: 622.2857143 | P91: 622.2857143 | AG91: Grand Total 5/ | AI91: 1154726335
L92: Lewis Creek WD | N92: 617.7142857 | O92: 617.7142857 | P92: 617.7142857
L93: Lindmore ID | N93: 20415 | O93: 20415 | P93: 20415
L94: Lindsay-Strathmore ID | N94: 17050.57143 | O94: 17050.57143 | P94: 17050.57143
L95: Lower Tule River ID - FKC | N95: 40123.71429 | O95: 40123.71429 | P95: 40123.71429
L96: Orange Cove ID | N96: 26313.85714 | O96: 26313.85714 | P96: 26313.85714
L97: Porterville ID | N97: 9671.857143 | O97: 9671.857143 | P97: 9671.857143
L98: Saucelito ID | N98: 12473.57143 | O98: 12473.57143 | P98: 12473.57143
L99: Shafter-Wasco ID | N99: 31445 | O99: 31445 | P99: 31445
L100: So San Joaquin MUD | N100: 61718.57 | O100: 61718.57 | P100: 61718.57
L101: Stone Corral ID | N101: 6137.57 | O101: 6137.57 | P101: 6137.57
L102: Tea Pot Dome WD | N102: 4502.86 | O102: 4502.86 | P102: 4502.86
L103: Terra Bella ID | N103: 16220.86 | O103: 16220.86 | P103: 16220.86
L104: Tri-Valley ID | N104: 215.5714286 | O104: 215.5714286 | P104: 215.5714286
L105: Tulare ID | N105: 19728 | O105: 19728 | P105: 19728
L106: Total Friant-Kern Canal - Class 1 | N106: 375979.0029 | O106: 375979.0029 | P106: 375979.0029
K109: Friant-Kern Canal - Class 2
L110: Arvin-Edison WSD | N110: 0 | P110: 0
L111: Delano-Earlimart ID | N111: 0 | P111: 0
L112: Exeter ID | N112: 0 | P112: 0
L113: Fresno ID | N113: 0 | P113: 0
L114: Ivanhoe ID | N114: 0 | P114: 0
L115: Kaweah Delta WCD | N115: 0 | P115: 0
L116: Kern-Tulare ID | N116: 0 | P116: 0
L117: Lindmore ID | N117: 0 | P117: 0
L118: Lower Tule River ID - FKC | N118: 0 | P118: 0
L119: Porterville ID | N119: 0 | P119: 0
L120: Saucelito ID | N120: 0 | P120: 0
L121: Shafter-Wasco ID | N121: 0 | P121: 0
L122: So San Joaquin MUD | N122: 0 | P122: 0
L123: Tulare ID | N123: 0 | P123: 0
L124: Total Friant-Kern Canal - Class 2 | N124: 0 | P124: 0
K127: Hidden Unit
L128: Madera ID - HU | N128: 24000 | O128: 24000
K131: Madera Canal - Class 1
L132: Chowchilla WD - MC | N132: 35840.14286 | O132: 35840.14286 | P132: 35840.14286
L133: Madera ID - MC | N133: 55867 | O133: 55867 | P133: 55867
L134: Total Madera Canal - Class 1 | N134: 91707.14286 | O134: 91707.14286 | P134: 91707.14286
K137: Madera Canal - Class 2
L138: Chowchilla WD - MC | N138: 0 | P138: 0
L139: Madera ID - MC | N139: 0 | P139: 0
L140: Total Madera Canal - Class 2 | N140: 0 | P140: 0
K143: New Melones D & R
L144: Central San Joaquin WCD | N144: 15626 | O144: 15626
L145: Stockton-East WD | N145: 5603.428571 | O145: 5603.428571
L146: Total New Melones D & R | N146: 21229.42857 | O146: 21229.42857
K149: Sacramento River - Shasta
L150: Anderson-Cottonwood ID | N150: 2490.714286 | O150: 2490.714286
L151: Daniell, H & B | N151: 1 | O151: 1
L152: Driscoll Strawberry | N152: 70 | O152: 70
L153: Gjermann, H | N153: 3.142857143 | O153: 3.142857143
L154: Leviathan Inc | N154: 254.2857143 | O154: 254.2857143
L155: Redding Rancheria | N155: 19.28571429 | O155: 19.28571429
L156: Total Sacramento River - Shasta | N156: 2838.428571 | O156: 2838.428571
K159: Sacramento River - Willows
L160: Anderson, A/et al | N160: 6.428571429 | O160: 6.428571429
L161: Anderson, R & J | N161: 26 | O161: 26
L162: Andreotti, A/et al | N162: 1037.285714 | O162: 1037.285714
L163: B & D Family Partnership | N163: 22.28571429 | O163: 22.28571429
L164: Baber, J/et al | N164: 2350.428571 | O164: 2350.428571
L165: Butler, Diane | N165: 227.8571429 | O165: 227.8571429
L166: Butte Creek Farms Inc | N166: 353.4285714 | O166: 353.4285714
L167: Byrd, A & Osborne, J. | N167: 138.4285714 | O167: 138.4285714
L168: Cachil Dehe Band of Wintun | N168: 82.14285714 | O168: 82.14285714
L169: Carter MWC | N169: 440.4285714 | O169: 440.4285714
L170: Charter, Mary | N170: 114.1428571 | O170: 114.1428571
L171: Churkin, M Jr & C | N171: 45.42857143 | O171: 45.42857143
L172: Conaway Consv Grp | N172: 396.5714286 | O172: 396.5714286
L173: County of Sacramento | N173: 32.85714286 | O173: 32.85714286
L174: Cummings, W | N174: 94.71428571 | O174: 94.71428571
L175: Driver, Gary/et al | N175: 3.142857143 | O175: 3.142857143
L176: Driver, J & C Trustees | N176: 49 | O176: 49
L177: Driver, Gregory | N177: 2 | O177: 2
L178: Driver, W/et al | N178: 15.14285714 | O178: 15.14285714
L179: Dyer, J & Wing, J | N179: 192 | O179: 192
L180: Eastside MWC | N180: 430.7142857 | O180: 430.7142857
L181: Ehrke, A & B | N181: 119.1428571 | O181: 119.1428571
L182: Empire Group, LLC | N182: 2.285714286 | O182: 2.285714286
L183: Feather WD | N183: 2676.428571 | O183: 2676.428571
L184: Fedora, S/Taylor, W | N184: 2.857142857 | O184: 2.857142857
L185: Four Corners Farmland | N185: 39.28571429 | O185: 39.28571429
L186: Gillaspy, W | N186: 64.85714286 | O186: 64.85714286
L187: Giusti, R & S | N187: 374.1428571 | O187: 374.1428571
L188: Glenn-Colusa ID | N188: 70036.57143 | O188: 70036.57143
L189: Green Valley Corp | N189: 141.1428571 | O189: 141.1428571
L190: Griffin, J/Prater | N190: 751.5714286 | O190: 751.5714286
L191: Hale, J/Marks, A | N191: 4.285714286 | O191: 4.285714286
L192: Hatfield, R & B | N192: 13.42857143 | O192: 13.42857143
L193: Heidrick & McGinnis Properties | N193: 28.57142857 | O193: 28.57142857
L194: Heidrick, M | N194: 39.71428571 | O194: 39.71428571
L195: Howald Farms Inc | N195: 941.4285714 | O195: 941.4285714
L196: Jaeger, W & P | N196: 69.28571429 | O196: 69.28571429
L197: Jansen, P & S | N197: 37 | O197: 37
L198: Kary, C | N198: 85.71428571 | O198: 85.71428571
L199: King, Ben | N199: 1 | O199: 1
L200: King, L | N200: 1.857142857 | O200: 1.857142857
L201: KLSY, LLC | N201: 48.28571429 | O201: 48.28571429
L202: Knights Landing Investors | N202: 592.8571429 | O202: 592.8571429
L203: Knights Landing Properties | N203: 16.42857143 | O203: 16.42857143
L204: L C Dennis Company | N204: 235.7142857 | O204: 235.7142857
L205: Lauppe, Joan Johnson, & Warren Lauppe | N205: 2 | O205: 2
L206: Lauppe, B ET UX | N206: 85.71428571 | O206: 85.71428571
L207: Lauppe, B & K | N207: 90 | O207: 90
L208: Leonard, James | N208: 4.285714286 | O208: 4.285714286
L209: Lockett, W & J | N209: 44.85714286 | O209: 44.85714286
L210: Lomo CS & Micheli, J | N210: 375 | O210: 375
L211: Lonon, M | N211: 411.1428571 | O211: 411.1428571
L212: M C M Properties | N212: 452.7142857 | O212: 452.7142857
L213: Maxwell ID | N213: 4141 | O213: 4141
L214: McClatchy Partners | N214: 24.57142857 | O214: 24.57142857
L215: Meridian Farms WC | N215: 7483.142857 | O215: 7483.142857
L216: Micke, D & N | N216: 2.714285714 | O216: 2.714285714
L217: Morehead, J/et ux | N217: 60 | O217: 60
L218: Munson, J & D | N218: 22.28571429 | O218: 22.28571429
... 72 more rows

Sheet OUTPUT
A2: =INFORMATION!A1 -> Special Rates 2023 Sch S-1.Z25.XLSM
A3: =INFORMATION!A2 -> 01/04/2023
A4: =INFORMATION!A3 -> CENTRAL VALLEY PROJECT
A5: =INFORMATION!A4 -> SCHEDULE OF IRRIGATION UNPAID CONSTRUCTION COSTS BY COMPONENT AND/OR FACILITY
A6: =INFORMATION!A5 -> AS OF SEPTEMBER 30, 2021
A7: =INFORMATION!A6 -> 2023 SPECIAL WATER RATES
A8: Category | B8: A) Component/Facility | C8: Related Footnotes | D8: B) Net Construction Costs at 9/30/2021 <Sch A-4> | E8: C) Ratio of Total <B/$1,154,726,335> | F8: D) Cumulative Construction Repayment at 9/30/2021 1/ <C*$1,045,413,672> | G8: E) Unpaid Construction: Net Unpaid Construction at 9/30/2021 <B-D> | H8: F) Unpaid Construction: Annualized Costs 8 Remaining Years <E/8> | I8: G) Unpaid Construction: FY 2023 Projected Deliveries <Sch S-5> | J8: H) Unpaid Construction: Unpaid Construction Cost Per Acre Foot <F/G>
A9: Storage | B9: San Felipe Unit Contractors | C9: - | D9: =MACRO_INPUT!AI18 -> 2819259.098 | E9: =D9/$D$64 -> 0.002499851102 | F9: =ROUND(AdjustedIrrigationConstructionRepayment[Adjusted Irrigation Construction Repayment]*E9,15) -> 2613378.52 | G9: =D9-F9 -> 205880.5773 | H9: =G9/8 -> 25735.07216 | I9: =MACRO_INPUT!N266 -> 21026.85714 | J9: =ROUND(H9/I9,2) -> 1.22
A10: Storage | B10: All Other Contractors | C10: - | D10: =MACRO_INPUT!AI19 -> 342433452 | E10: =D10/$D$64 -> 0.3036374497 | F10: =ROUND(AdjustedIrrigationConstructionRepayment[Adjusted Irrigation Construction Repayment]*E10,15) -> 317426741.2 | G10: =D10-F10 -> 25006710.75 | H10: =G10/8 -> 3125838.843 | I10: =+MACRO_INPUT!O299-I9 -> 1438384.86 | J10: =ROUND(H10/I10,2) -> 2.17
A11: Total | B11: Total Storage | C11: - | D11: =SUM(D9:D10) -> 345252711.1 | E11: =SUM(E9:E10) -> 0.3061373008 | F11: =ROUND(AdjustedIrrigationConstructionRepayment[Adjusted Irrigation Construction Repayment]*E11,15) -> 320040119.8 | G11: =SUM(G9:G10) -> 25212591.32 | H11: 3151573.915 | I11: - | J11: -
A12: Conveyance | B12: Contra Costa WD | C12: - | D12: =MACRO_INPUT!AI23 -> 0 | E12: =D12/$D$64 -> 0 | F12: =ROUND(AdjustedIrrigationConstructionRepayment[Adjusted Irrigation Construction Repayment]*E12,15) -> 0 | G12: =D12-F12 -> 0 | H12: 0 | I12: - | J12: 0
A13: Conveyance | B13: All Other Contractors | C13: - | D13: =MACRO_INPUT!AI24 -> 377317187.6 | E13: =D13/$D$64 -> 0.334569032 | F13: =ROUND(AdjustedIrrigationConstructionRepayment[Adjusted Irrigation Construction Repayment]*E13,15) -> 349763040.3 | G13: =D13-F13 -> 27554147.28 | H13: 3444268.41 | I13: =MACRO_INPUT!P299 -> 1158469.86 | J13: =ROUND(H13/I13,2) -> 2.97
A14: Total | B14: Total Conveyance | C14: - | D14: =SUM(D12:D13) -> 377317187.6 | E14: =SUM(E12:E13) -> 0.334569032 | F14: =ROUND(AdjustedIrrigationConstructionRepayment[Adjusted Irrigation Construction Repayment]*E14,15) -> 349763040.3 | G14: =SUM(G12:G13) -> 27554147.28 | H14: 3444268.41 | I14: - | J14: -
A15: Conveyance Pumping | B15: Corning Pumping Plant, Construction only | C15: - | D15: =MACRO_INPUT!AI28-MACRO_INPUT!G12-MACRO_INPUT!I12 -> 2513027.13 | E15: =D15/$D$64 -> 0.002228313689 | F15: =ROUND(AdjustedIrrigationConstructionRepayment[Adjusted Irrigation Construction Repayment]*E15,15) -> 2329509.596 | G15: =D15-F15 -> 183517.5336 | H15: 22939.6917 | I15: =MACRO_INPUT!Q33 -> 5423.285714 | J15: =IF(I15<>0,(ROUND(H15/I15,2)),0) -> 4.23
A16: Conveyance Pumping | B16: Corning Pumping Plant, PUE only | C16: - | D16: =MACRO_INPUT!G12+MACRO_INPUT!I12 -> 295317.4007 | E16: =D16/$D$64 -> 0.000261859412 | F16: =ROUND(AdjustedIrrigationConstructionRepayment[Adjusted Irrigation Construction Repayment]*E16,15) -> 273751.4095 | G16: =D16-F16 -> 21565.99122 | H16: 2695.748902 | I16: =MACRO_INPUT!Q33 -> 5423.285714 | J16: =IF(I16<>0,(ROUND(H16/I16,2)),0) -> 0.5
A17: Total | B17: Corning Pumping Plant | C17: - | D17: - | E17: - | F17: =ROUND(AdjustedIrrigationConstructionRepayment[Adjusted Irrigation Construction Repayment]*E17,15) -> 0 | G17: - | H17: 0 | I17: - | J17: =SUM(J15:J16) -> 4.73
A18: Conveyance Pumping | B18: Dos Amigos Pumping Plant, Construction only | C18: - | D18: =MACRO_INPUT!AI30 -> 13497147.38 | E18: =D18/$D$64 -> 0.0119679879 | F18: =ROUND(AdjustedIrrigationConstructionRepayment[Adjusted Irrigation Construction Repayment]*E18,15) -> 12511498.17 | G18: =D18-F18 -> 985649.2071 | H18: 123206.1509 | I18: =MACRO_INPUT!T299-MACRO_INPUT!T48 -> 449532.1768 | J18: =IF(I18<>0,(ROUND(H18/I18,2)),0) -> 0.27
A19: Conveyance Pumping | B19: Dos Amigos Pumping Plant, PUE only | C19: - | D19: =MACRO_INPUT!AI31 -> 24138808.91 | E19: =D19/$D$64 -> 0.02140400225 | F19: =ROUND(AdjustedIrrigationConstructionRepayment[Adjusted Irrigation Construction Repayment]*E19,15) -> 22376036.59 | G19: =D19-F19 -> 1762772.325 | H19: 220346.5406 | I19: =MACRO_INPUT!T299 -> 462751.7482 | J19: =IF(I19<>0,(ROUND(H19/I19,2)),0) -> 0.48
A20: Total | B20: Dos Amigos Pumping Plant | C20: - | D20: - | E20: - | F20: =ROUND(AdjustedIrrigationConstructionRepayment[Adjusted Irrigation Construction Repayment]*E20,15) -> 0 | G20: - | H20: 0 | I20: - | J20: =SUM(J18:J19) -> 0.75
A21: Conveyance Pumping | B21: O'Neill Pump-Generator Plant, Construction only | C21: - | D21: =MACRO_INPUT!AI32-MACRO_INPUT!G15-MACRO_INPUT!I15 -> 10379044.78 | E21: =D21/$D$64 -> 0.009203150765 | F21: =ROUND(AdjustedIrrigationConstructionRepayment[Adjusted Irrigation Construction Repayment]*E21,15) -> 9621099.636 | G21: =D21-F21 -> 757945.1394 | H21: 94743.14242 | I21: =MACRO_INPUT!S299 -> 472672.4286 | J21: =IF(I21<>0,(ROUND(H21/I21,2)),0) -> 0.2
A22: Conveyance Pumping | B22: O'Neill Pump-Generator Plant, PUE only | C22: - | D22: =MACRO_INPUT!G15+MACRO_INPUT!I15 -> 10620801.84 | E22: =D22/$D$64 -> 0.009417517958 | F22: =ROUND(AdjustedIrrigationConstructionRepayment[Adjusted Irrigation Construction Repayment]*E22,15) -> 9845202.03 | G22: =D22-F22 -> 775599.8074 | H22: 96949.97593 | I22: =+I21 -> 472672.4286 | J22: =IF(I22<>0,(ROUND(H22/I22,2)),0) -> 0.21
A23: Total | B23: O'Neill Pump-Generator Plant | C23: - | D23: - | E23: - | F23: =ROUND(AdjustedIrrigationConstructionRepayment[Adjusted Irrigation Construction Repayment]*E23,15) -> 0 | G23: - | H23: 0 | I23: - | J23: =SUM(J21:J22) -> 0.41
A24: Conveyance Pumping | B24: Jones Pumping Plant, Delta Mendota Exchange, Construction only | C24: 3/ | D24: =Footnotes!D24-MACRO_INPUT!AA41 -> 11761123.81 | E24: =D24/$D$64 -> 0.01042864714 | F24: =ROUND(AdjustedIrrigationConstructionRepayment[Adjusted Irrigation Construction Repayment]*E24,15) -> 10902250.3 | G24: =D24-F24 -> 858873.5109 | H24: 107359.1889 | I24: =MACRO_INPUT!P106+MACRO_INPUT!P134 -> 467686.1457 | J24: =IF(I24<>0,(ROUND(H24/I24,2)),0) -> 0.23
A25: Conveyance Pumping | B25: Jones Pumping Plant, Delta Mendota Exchange, PUE only | C25: 3/ | D25: =Footnotes!G24 -> 29747435.32 | E25: =D25/$D$64 -> 0.02637719926 | F25: =ROUND(AdjustedIrrigationConstructionRepayment[Adjusted Irrigation Construction Repayment]*E25,15) -> 27575084.74 | G25: =D25-F25 -> 2172350.587 | H25: 271543.8234 | I25: =+I24 -> 467686.1457 | J25: =IF(I25<>0,(ROUND(H25/I25,2)),0) -> 0.58
A26: Total | B26: Jones Pumping Plant | C26: - | D26: - | E26: - | F26: =ROUND(AdjustedIrrigationConstructionRepayment[Adjusted Irrigation Construction Repayment]*E26,15) -> 0 | G26: - | H26: 0 | I26: - | J26: =SUM(J24:J25) -> 0.81
A27: Conveyance Pumping | B27: All Other Contractors, Construction only | C27: 3/ | D27: =Footnotes!D25-MACRO_INPUT!AA42 -> 20584241.24 | E27: =D27/$D$64 -> 0.01825214936 | F27: =ROUND(AdjustedIrrigationConstructionRepayment[Adjusted Irrigation Construction Repayment]*E27,15) -> 19081046.49 | G27: =D27-F27 -> 1503194.748 | H27: 187899.3435 | I27: =MACRO_INPUT!R299 -> 571085.8571 | J27: =IF(I27<>0,(ROUND(H27/I27,2)),0) -> 0.33
A28: Conveyance Pumping | B28: All Other Contractors, PUE only | C28: 3/ | D28: =Footnotes!G25 -> 52414177.46 | E28: =D28/$D$64 -> 0.04647591256 | F28: =ROUND(AdjustedIrrigationConstructionRepayment[Adjusted Irrigation Construction Repayment]*E28,15) -> 48586554.41 | G28: =D28-F28 -> 3827623.052 | H28: 478452.8816 | I28: =+I27 -> 571085.8571 | J28: =IF(I28<>0,(ROUND(H28/I28,2)),0) -> 0.84
A29: Total | B29: All Other Contractors | C29: - | D29: - | E29: - | F29: =ROUND(AdjustedIrrigationConstructionRepayment[Adjusted Irrigation Construction Repayment]*E29,15) -> 0 | G29: - | H29: 0 | I29: - | J29: =SUM(J27:J28) -> 1.17
A30: Total | B30: Total Conveyance Pumping | C30: - | D30: =SUM(D15:D29) -> 175951125.3 | E30: =SUM(E15:E29) -> 0.1560167403 | F30: =ROUND(AdjustedIrrigationConstructionRepayment[Adjusted Irrigation Construction Repayment]*E30,15) -> 163102033.4 | G30: =SUM(G15:G29) -> 12849091.9 | H30: 1606136.488 | I30: - | J30: -
A31: Direct Pumping | B31: Bella Vista WD (Wintu PP) | C31: - | D31: =MACRO_INPUT!AI40 -> 1288490.822 | E31: =D31/$D$64 -> 0.001142511238 | F31: =ROUND(AdjustedIrrigationConstructionRepayment[Adjusted Irrigation Construction Repayment]*E31,15) -> 1194396.869 | G31: =D31-F31 -> 94093.95346 | H31: 11761.74418 | I31: =MACRO_INPUT!N37 -> 2851.571429 | J31: =IF(I31<>0,(ROUND(H31/I31,2)),0) -> 4.12
A32: Direct Pumping | B32: Colusa County WD Relift PP | C32: - | D32: =MACRO_INPUT!AI41 -> 11997486.53 | E32: =D32/$D$64 -> 0.01063823114 | F32: =ROUND(AdjustedIrrigationConstructionRepayment[Adjusted Irrigation Construction Repayment]*E32,15) -> 11121352.28 | G32: =D32-F32 -> 876134.2488 | H32: 109516.7811 | I32: =MACRO_INPUT!N284 -> 23661.85714 | J32: =IF(I32<>0,(ROUND(H32/I32,2)),0) -> 4.63
A33: Direct Pumping | B33: Colusa Service Area - Cortina | C33: - | D33: =MACRO_INPUT!AI42 -> 139400.86 | E33: =D33/$D$64 -> 0.0001236074378 | F33: =ROUND(AdjustedIrrigationConstructionRepayment[Adjusted Irrigation Construction Repayment]*E33,15) -> 129220.9054 | G33: =D33-F33 -> 10179.95457 | H33: 1272.494321 | I33: =MACRO_INPUT!N285 -> 725.2857143 | J33: =IF(I33<>0,(ROUND(H33/I33,2)),0) -> 1.75
A34: Direct Pumping | B34: Colusa Service Area - Davis | C34: - | D34: =MACRO_INPUT!AI43 -> 171721.21 | E34: =D34/$D$64 -> 0.0001522660533 | F34: =ROUND(AdjustedIrrigationConstructionRepayment[Adjusted Irrigation Construction Repayment]*E34,15) -> 159181.0139 | G34: =D34-F34 -> 12540.19607 | H34: 1567.524508 | I34: =MACRO_INPUT!N286 -> 2722.571429 | J34: =IF(I34<>0,(ROUND(H34/I34,2)),0) -> 0.58
A35: Direct Pumping | B35: Corning WD Relift PP | C35: - | D35: =MACRO_INPUT!AI45 -> 3236242.219 | E35: =D35/$D$64 -> 0.002869592116 | F35: =ROUND(AdjustedIrrigationConstructionRepayment[Adjusted Irrigation Construction Repayment]*E35,15) -> 2999910.831 | G35: =D35-F35 -> 236331.3882 | H35: 29541.42352 | I35: =MACRO_INPUT!N30 -> 5132.142857 | J35: =IF(I35<>0,(ROUND(H35/I35,2)),0) -> 5.76
A36: Direct Pumping | B36: Dunnigan WD Relift PP | C36: - | D36: =MACRO_INPUT!AI46 -> 1637766.696 | E36: 0.001452215898 | F36: =ROUND(AdjustedIrrigationConstructionRepayment[Adjusted Irrigation Construction Repayment]*E36,15) -> 1518166.354 | G36: 119600.3422 | H36: 14950.04278 | I36: =MACRO_INPUT!N287 -> 6186.285714 | J36: 2.42
A37: Direct Pumping | B37: Kanawha WD Relift PP | C37: - | D37: =MACRO_INPUT!AI47 -> 2820678.878 | E37: 0.002501110029 | F37: =ROUND(AdjustedIrrigationConstructionRepayment[Adjusted Irrigation Construction Repayment]*E37,15) -> 2614694.619 | G37: 205984.2588 | H37: 25748.03235 | I37: =MACRO_INPUT!N291 -> 19964.57143 | J37: 1.29
A38: Direct Pumping | B38: Orland-Artois WD Relift PP | C38: - | D38: =MACRO_INPUT!AI48 -> 7339803.626 | E38: 0.006508240481 | F38: =ROUND(AdjustedIrrigationConstructionRepayment[Adjusted Irrigation Construction Repayment]*E38,15) -> 6803803.579 | G38: 536000.0465 | H38: 67000.00581 | I38: =MACRO_INPUT!N295 -> 17550.71429 | J38: 3.82
A39: Direct Pumping | B39: Panoche WD Relift PP | C39: - | D39: =MACRO_INPUT!AI49 -> 19786.18537 | E39: 1.754450925e-05 | F39: =ROUND(AdjustedIrrigationConstructionRepayment[Adjusted Irrigation Construction Repayment]*E39,15) -> 18341.26984 | G39: 1444.915535 | H39: 180.6144418 | I39: =MACRO_INPUT!N277 -> 18367.42857 | J39: 0.01
A40: Direct Pumping | B40: Proberta WD Relift PP | C40: - | D40: =MACRO_INPUT!AI50 -> 193993.536 | E40: 0.0001720150359 | F40: =ROUND(AdjustedIrrigationConstructionRepayment[Adjusted Irrigation Construction Repayment]*E40,15) -> 179826.8703 | G40: 14166.66571 | H40: 1770.833213 | I40: =MACRO_INPUT!N31 -> 201.4285714 | J40: 8.79
A41: Direct Pumping | B41: San Benito County WD, Gianelli, WR PGP | C41: - | D41: =MACRO_INPUT!AI52 -> 941297.949 | E41: =D41/$D$64 -> 0.0008346535859 | F41: =ROUND(AdjustedIrrigationConstructionRepayment[Adjusted Irrigation Construction Repayment]*E41,15) -> 872558.2701 | G41: 68739.6789 | H41: 8592.459863 | I41: - | J41: -
A42: Direct Pumping | B42: San Benito County WD, Pacheco PP | C42: - | D42: =MACRO_INPUT!AI53 -> 553450.2089 | E42: =D42/$D$64 -> 0.0004907470605 | F42: =ROUND(AdjustedIrrigationConstructionRepayment[Adjusted Irrigation Construction Repayment]*E42,15) -> 513033.6865 | G42: 40416.52241 | H42: 5052.065301 | I42: - | J42: -
A43: Direct Pumping | B43: Total San Benito County WD | C43: - | D43: =SUM(D41:D42) -> 1494748.158 | E43: =SUM(E41:E42) -> 0.001325400646 | F43: =ROUND(AdjustedIrrigationConstructionRepayment[Adjusted Irrigation Construction Repayment]*E43,15) -> 1385591.957 | G43: =SUM(G41:G42) -> 109156.2013 | H43: 13644.52516 | I43: =MACRO_INPUT!N264 -> 8814.142857 | J43: =IF(I43<>0,(ROUND(H43/I43,2)),0) -> 1.55
A44: Direct Pumping | B44: San Luis WD Canalside Relift PP | C44: - | D44: =MACRO_INPUT!AI56 -> 11280163.67 | E44: =D44/$D$64 -> 0.01000217739 | F44: =ROUND(AdjustedIrrigationConstructionRepayment[Adjusted Irrigation Construction Repayment]*E44,15) -> 10456412.99 | G44: =D44-F44 -> 823750.6834 | H44: 102968.8354 | I44: =MACRO_INPUT!N278 -> 29434.28571 | J44: =IF(I44<>0,(ROUND(H44/I44,2)),0) -> 3.5
A45: Direct Pumping | B45: Santa Clara Valley WD, Coyote PP | C45: - | D45: =MACRO_INPUT!AI60 -> 165006.5489 | E45: =D45/$D$64 -> 0.0001463121298 | F45: =ROUND(AdjustedIrrigationConstructionRepayment[Adjusted Irrigation Construction Repayment]*E45,15) -> 152956.7009 | G45: =D45-F45 -> 12049.84798 | H45: 1506.230997 | I45: - | J45: -
A46: Direct Pumping | B46: Santa Clara Valley WD, Gianelli, WR PGP | C46: - | D46: =MACRO_INPUT!AI61 -> 887204.0847 | E46: =D46/$D$64 -> 0.0007866882867 | F46: =ROUND(AdjustedIrrigationConstructionRepayment[Adjusted Irrigation Construction Repayment]*E46,15) -> 822414.6905 | G46: =D46-F46 -> 64789.39423 | H46: 8098.674279 | I46: - | J46: -
A47: Direct Pumping | B47: Santa Clara Valley WD, Pacheco PP | C47: - | D47: =MACRO_INPUT!AI62 -> 573294.9721 | E47: =D47/$D$64 -> 0.0005083435109 | F47: =ROUND(AdjustedIrrigationConstructionRepayment[Adjusted Irrigation Construction Repayment]*E47,15) -> 531429.2564 | G47: =D47-F47 -> 41865.71567 | H47: 5233.214459 | I47: - | J47: -
A48: Total | B48: Total Santa Clara Valley WD | C48: - | D48: =SUM(D45:D47) -> 1625505.606 | E48: =SUM(E45:E47) -> 0.001441343927 | F48: =ROUND(AdjustedIrrigationConstructionRepayment[Adjusted Irrigation Construction Repayment]*E48,15) -> 1506800.648 | G48: =SUM(G45:G47) -> 118704.9579 | H48: 14838.11974 | I48: =MACRO_INPUT!N265 -> 12212.71429 | J48: =IF(I48<>0,(ROUND(H48/I48,2)),0) -> 1.21
A49: Direct Pumping | B49: State Delta PP (CVC Contractors) | C49: - | D49: =MACRO_INPUT!AI66 -> 2998092.81 | E49: =D49/$D$64 -> 0.002658423847 | F49: =ROUND(AdjustedIrrigationConstructionRepayment[Adjusted Irrigation Construction Repayment]*E49,15) -> 2779152.635 | G49: =D49-F49 -> 218940.1743 | H49: 27367.52179 | I49: =MACRO_INPUT!N48 -> 13219.57143 | J49: =IF(I49<>0,(ROUND(H49/I49,2)),0) -> 2.07
A50: Direct Pumping | B50: Westlands WD, Pleasant Valley Canalside Relifts | C50: - | D50: =MACRO_INPUT!AI68 -> 1373192.263 | E50: =D50/$D$64 -> 0.001217616428 | F50: =ROUND(AdjustedIrrigationConstructionRepayment[Adjusted Irrigation Construction Repayment]*E50,15) -> 1272912.861 | G50: =D50-F50 -> 100279.4018 | H50: 12534.92523 | I50: - | J50: -
A51: Direct Pumping | B51: Westlands WD, Pleasant Valley PP | C51: - | D51: =MACRO_INPUT!AI69 -> 12742514.09 | E51: =D51/$D$64 -> 0.01129885079 | F51: =ROUND(AdjustedIrrigationConstructionRepayment[Adjusted Irrigation Construction Repayment]*E51,15) -> 11811973.1 | G51: =D51-F51 -> 930540.9916 | H51: 116317.624 | I51: - | J51: -
A52: Direct Pumping | B52: Westlands WD, Westlands WD Canalside Relifts | C52: - | D52: =MACRO_INPUT!AI70 -> 44913719.33 | E52: =D52/$D$64 -> 0.03982521893 | F52: =ROUND(AdjustedIrrigationConstructionRepayment[Adjusted Irrigation Construction Repayment]*E52,15) -> 41633828.36 | G52: =D52-F52 -> 3279890.972 | H52: 409986.3715 | I52: - | J52: -
A53: Total | B53: Total Westlands WD | C53: - | D53: =SUM(D50:D52) -> 59029425.68 | E53: =SUM(E50:E52) -> 0.05234168615 | F53: =ROUND(AdjustedIrrigationConstructionRepayment[Adjusted Irrigation Construction Repayment]*E53,15) -> 54718714.32 | G53: =SUM(G50:G52) -> 4310711.366 | H53: 538838.9207 | I53: =MACRO_INPUT!N272 -> 400645.7143 | J53: =IF(I53<>0,(ROUND(H53/I53,2)),0) -> 1.34
A54: Direct Pumping | B54: Westside WD Canalside Relifts | C54: - | D54: =MACRO_INPUT!AI74 -> 6964451.868 | E54: =D54/$D$64 -> 0.006175414205 | F54: =ROUND(AdjustedIrrigationConstructionRepayment[Adjusted Irrigation Construction Repayment]*E54,15) -> 6455862.44 | G54: =D54-F54 -> 508589.4277 | H54: 63573.67846 | I54: =MACRO_INPUT!N296 -> 29097.85714 | J54: =IF(I54<>0,(ROUND(H54/I54,2)),0) -> 2.18
A55: Total | B55: Total Direct Pumping | C55: - | D55: =SUM(D31:D40,D43,D44,D48,D49,D53,D54) -> 112237758.4 | E55: =SUM(E31:E40,E43,E44,E48,E49,E53,E54) -> 0.0995217801 | F55: =ROUND(AdjustedIrrigationConstructionRepayment[Adjusted Irrigation Construction Repayment]*E55,15) -> 104041429.6 | G55: =SUM(G31:G40,G43,G44,G48,G49,G53,G54) -> 8196328.78 | H55: 1024541.098 | I55: - | J55: -
A56: San Luis Drain | B56: Panoche WD | C56: 6/ | D56: =MACRO_INPUT!AI79 -> 2580614.084 | E56: =D56/$D$64 -> 0.002288243379 | F56: =ROUND(AdjustedIrrigationConstructionRepayment[Adjusted Irrigation Construction Repayment]*E56,15) -> 2392160.913 | G56: =D56-F56 -> 188453.1712 | H56: 23556.6464 | I56: =MACRO_INPUT!N277 -> 18367.42857 | J56: -
A57: San Luis Drain | B57: San Luis WD | C57: 6/ | D57: =MACRO_INPUT!AI80 -> 3624435.936 | E57: =D57/$D$64 -> 0.003213805421 | F57: =ROUND(AdjustedIrrigationConstructionRepayment[Adjusted Irrigation Construction Repayment]*E57,15) -> 3359756.126 | G57: =D57-F57 -> 264679.8102 | H57: 33084.97627 | I57: =MACRO_INPUT!N278 -> 29434.28571 | J57: -
A58: San Luis Drain | B58: Westlands WD | C58: 6/ | D58: =MACRO_INPUT!AI81 -> 46176501.9 | E58: =D58/$D$64 -> 0.04094493453 | F58: =ROUND(AdjustedIrrigationConstructionRepayment[Adjusted Irrigation Construction Repayment]*E58,15) -> 42804394.36 | G58: =D58-F58 -> 3372107.542 | H58: 421513.4428 | I58: =MACRO_INPUT!N270 -> 399746 | J58: -
A59: Total | B59: Total San Luis Drain | C59: 6/ | D59: =SUM(D56:D58) -> 52381551.92 | E59: 0.04644698333 | F59: =ROUND(AdjustedIrrigationConstructionRepayment[Adjusted Irrigation Construction Repayment]*E59,15) -> 48556311.4 | G59: 3825240.524 | H59: 478155.0655 | I59: 447547.7143 | J59: =IF(I59<>0,(ROUND(H59/I59,2)),0) -> 1.07
A60: Subtotal | B60: Subtotal | C60: - | D60: =SUM(D11,D14,D30,D55,D59) -> 1063140334 | E60: =SUM(E11,E14,E30,E55,E59) -> 0.9426918366 | F60: =ROUND(AdjustedIrrigationConstructionRepayment[Adjusted Irrigation Construction Repayment]*E60,15) -> 985502934.4 | G60: =SUM(G11,G14,G30,G55,G59) -> 77637399.81 | H60: 9704674.976 | I60: - | J60: -
A61: Other Costs | B61: Programmatic EIS Capitalized | C61: - | D61: =MACRO_INPUT!AI87 -> 13902414.29 | E61: =D61/SUM($D$64) -> 0.01232734009 | F61: =ROUND(AdjustedIrrigationConstructionRepayment[Adjusted Irrigation Construction Repayment]*E61,15) -> 12887169.87 | G61: =D61-F61 -> 1015244.424 | H61: 126905.553 | I61: - | J61: -
A62: Other Costs | B62: All Others | C62: - | D62: =MACRO_INPUT!AI88 -> 50728059.49 | E62: =D62/SUM($D$64) -> 0.04498082335 | F62: =ROUND(AdjustedIrrigationConstructionRepayment[Adjusted Irrigation Construction Repayment]*E62,15) -> 47023567.7 | G62: =D62-F62 -> 3704491.787 | H62: 463061.4733 | I62: - | J62: -
A63: Total | B63: Total Other Costs | C63: - | D63: =SUM(D61:D62) -> 64630473.78 | E63: =SUM(E61:E62) -> 0.05730816343 | F63: =ROUND(AdjustedIrrigationConstructionRepayment[Adjusted Irrigation Construction Repayment]*E63,15) -> 59910737.57 | G63: =SUM(G61:G62) -> 4719736.211 | H63: 589967.0263 | I63: =MACRO_INPUT!N299 -> 1459411.717 | J63: =IF(I63<>0,(ROUND(H63/I63,2)),0) -> 0.4
A64: Subtotal | B64: Subtotal | C64: - | D64: =D60+D63 -> 1127770808 | E64: =E60+E63 -> 1 | F64: =ROUND(AdjustedIrrigationConstructionRepayment[Adjusted Irrigation Construction Repayment]*E64,15) -> 1045413672 | G64: =G60+G63 -> 82357136.02 | H64: 10294642 | I64: - | J64: -
A65: Other Costs | B65: DMC California Aqueduct Intertie | C65: 7/ | D65: =MACRO_INPUT!AI29 -> 26955526.76 | E65: 0 | F65: =D65-G65 -> 30515546.6 | G65: =MACRO_INPUT!AD14 -> -3560019.845 | H65: =G65/(8+33) -> -86829.75231 | I65: =MACRO_INPUT!N64+MACRO_INPUT!N76+MACRO_INPUT!N266+MACRO_INPUT!N272+MACRO_INPUT!N279 -> 571085.8571 | J65: =IF(OR(I65<0, H65<0), 0, (ROUND(H65/I65,2))) -> 0
A66: Total | B66: Total | C66: - | D66: =SUM(D64:D65) -> 1154726335 | E66: - | F66: - | G66: - | H66: - | I66: - | J66: -

Sheet Footnotes
A2: =INFORMATION!A1 -> Special Rates 2023 Sch S-1.Z25.XLSM
A3: =INFORMATION!A2 -> 01/04/2023
A4: =+INFORMATION!A3 -> CENTRAL VALLEY PROJECT
A5: =+INFORMATION!A4 -> SCHEDULE OF IRRIGATION UNPAID CONSTRUCTION COSTS BY COMPONENT AND/OR FACILITY
A6: =+INFORMATION!A5 -> AS OF SEPTEMBER 30, 2021
A7: =+INFORMATION!A6 -> 2023 SPECIAL WATER RATES
A9: Footnotes:
A11: 1/ | O11: ok
A12: Refer to Irrigation Water Rates, Schedule A-2Ba. Total Allocation of Construction is being increased by the Assignment.
A14: Repayment as of 9/30/21 (Column C of A-2Ba) | B14: Construction Repayment per Assignment | C14: Adjusted Irrigation Construction Repayment
A15: 1044634527 | B15: 779145 | C15: =SUM(A15:B15) -> 1045413672
A17: 2/
A18: Cross Valley Canal contractors are charged for PUE construction component only. Therefore their deliveries are not included in determining the "Construction only" rate.
A20: 3/
A21: Suballocation of Jones Pumping Plant Costs:
A23: Facility/Contractor <Ref> | B23: Historical & Projected Deliveries (1981-2030) <Sch A-7> | C23: Ratio of Total | D23: Allocated Construction Costs Allocated | E23: Project Use Energy: BOR | F23: Project Use Energy: DOE | G23: Project Use Energy: TOTAL
A24: Delta-Mendota Exchange | B24: =MACRO_INPUT!AA23 -> 29157082.49 | C24: =ROUND(B24/B26,15) -> 0.3620600219 | D24: =C24*D32 -> 11792287.21 | E24: =MACRO_INPUT!G16*C24 -> 16224061.32 | F24: =MACRO_INPUT!I16*C24 -> 13523374.01 | G24: =SUM(E24:F24) -> 29747435.32
A25: All Other Contractors | B25: =MACRO_INPUT!AA24 -> 51373991.71 | C25: =ROUND(B25/B26,15) -> 0.6379399781 | D25: =C25*D32 -> 20777691.52 | E25: =MACRO_INPUT!G16*C25 -> 28586357.78 | F25: =MACRO_INPUT!I16*C25 -> 23827819.69 | G25: =SUM(E25:F25) -> 52414177.46
A26: Total a/ | B26: =SUM(B24:B25) -> 80531074.2 | C26: =SUM(C24:C25) -> 1 | D26: =SUM(D24:D25) -> 32569978.73 | E26: =SUM(E24:E25) -> 44810419.09 | F26: =SUM(F24:F25) -> 37351193.69 | G26: =SUM(E26:F26) -> 82161612.79
A28: a/ | N28: ok
A29: Jones Pumping Plant - Conveyance Pumping:
A31: Total Construction <Sch A-5> | B31: less: BOR PUE <Sch A-5> | C31: less: DOE PUE <Sch A-5> | D31: Construction Allocation
A32: =+MACRO_INPUT!E16 -> 114731591.5 | B32: =+MACRO_INPUT!G16 -> 44810419.09 | C32: =+MACRO_INPUT!I16 -> 37351193.69 | D32: =A32-B32-C32 -> 32569978.73
A34: 4/ | O34: ok
A35: Includes Friant-Kern Canal - Class 1 and Madera Canal - Class 1
A37: 5/
A38: Total Conveyance Pumping for Jones Pumping Plant less Delta-Mendota Exchange
A40: 6/ | O40: ok
A41: San Luis Drain allocated to Panoche WD, San Luis WD, and Westlands WD on the basis of their projected San Luis Canal deliveries:
A43: San Luis Canal Contractors | B43: Historical & Projected Deliveries (1981-2030) <Sch A-4> | C43: Ratio of Total | D43: Allocated Construction Costs at 9/30/2021
A44: Panoche WD | B44: =MACRO_INPUT!AA35 -> 1915445.857 | C44: =ROUND(B44/B47,9) -> 0.049265705 | D44: =ROUND(C44*$D$47,9) -> 2580614.084
A45: San Luis WD | B45: =MACRO_INPUT!AA36 -> 2690216.571 | C45: =ROUND(B45/B47,9) -> 0.069192985 | D45: =ROUND(C45*$D$47,9) -> 3624435.936
A46: Westlands WD | B46: =MACRO_INPUT!AA37 -> 34274241 | C46: =ROUND(B46/B47,9) -> 0.88154131 | D46: =ROUND(C46*$D$47,9) -> 46176501.9
A47: Total | B47: =SUM(B44:B46) -> 38879903.43 | C47: =SUM(C44:C46) -> 1 | D47: =MACRO_INPUT!AI82 -> 52381551.92
A49: 7/
A50: Payment period is through 2063.
